bitfinex/quotes_BTCUSD_20250324
["timestamp","ask_amount","ask_price","bid_price","bid_amount"]
[1742823474969,0.30042958,87550.0,87541.0,0.13484]
[1742823474970,0.30342958,87550.0,87541.0,0.13484]
[1742823475174,0.3,87547.0,87541.0,0.13484]
[1742823475374,0.3,87547.0,87539.0,0.228469]
[1742823475575,0.228463,87542.0,87539.0,0.13464]
[1742823475875,0.011422,87543.0,87530.0,0.011424]
[1742823475876,0.3,87543.0,87537.0,0.363074]
[1742823476117,0.3,87543.0,87541.0,0.228464]
[1742823476338,0.3,87543.0,87542.0,0.239884]
[1742823476563,0.3,87543.0,87537.0,0.146023]
[1742823476770,0.3,87543.0,87537.0,0.1346]
[1742823477355,0.3,87545.0,87537.0,0.1346]
[1742823477874,0.3,87543.0,87537.0,0.1346]
[1742823478103,0.301,87543.0,87537.0,0.1346]
[1742823478478,0.3,87543.0,87537.0,0.1346]
[1742823478838,0.3,87543.0,87528.0,0.4149]
[1742823478839,0.239944,87520.0,87516.0,0.0474]
[1742823479055,0.239944,87520.0,87495.0,0.54372]
[1742823479056,0.3,87510.0,87495.0,0.54372]
[1742823479248,0.228577,87498.0,87495.0,0.54372]
[1742823479458,0.011428,87499.0,87495.0,0.54372]
[1742823479656,0.24001,87496.0,87495.0,0.54372]
[1742823479853,0.311429,87493.0,87472.0,0.54368]
[1742823480198,0.425156,87493.0,87477.0,0.13448]
[1742823480394,0.53941364,87493.0,87492.0,0.00046333]
[1742823480551,0.3,87493.0,87492.0,0.00046333]
[1742823480754,0.58525407,87493.0,87492.0,0.00046333]
[1742823480972,0.3,87493.0,87492.0,0.00046333]
[1742823481214,0.311429,87493.0,87492.0,0.00046333]
[1742823481458,0.302,87493.0,87492.0,0.00046333]
[1742823481837,0.3,87493.0,87492.0,0.00046333]
[1742823482064,0.3,87511.0,87501.0,0.010428]
[1742823482260,0.3,87505.0,87496.0,0.011429]
[1742823482453,0.3,87505.0,87497.0,0.011428]
[1742823482835,0.3,87505.0,87498.0,0.228576]
[1742823483012,0.3,87505.0,87503.0,0.23999]
[1742823483214,0.29836561,87519.0,87510.0,0.228544]
[1742823483215,0.3,87518.0,87510.0,0.228544]
[1742823483419,0.3,87516.0,87508.0,0.228548]
[1742823483598,0.239951,87518.0,87508.0,0.228548]
[1742823483798,0.228525,87518.0,87508.0,0.239975]
[1742823484047,0.228528,87517.0,87508.0,0.228548]
[1742823484226,0.228528,87517.0,87506.0,0.228554]
[1742823484427,0.228528,87517.0,87169.0,3.66007498]
[1742823484428,0.011427,87508.0,87499.0,0.5438]
[1742823484776,0.3,87505.0,87500.0,0.13472]
[1742823485110,0.3,87503.0,87500.0,0.13472]
[1742823485545,0.3,87503.0,87501.0,0.228567]
[1742823486158,0.003,87518.0,87508.0,0.011427]
[1742823486364,0.001,87518.0,87511.0,0.011427]
[1742823486564,0.001,87518.0,87515.0,0.228531]
[1742823486766,0.001,87518.0,87513.0,0.228537]
[1742823487226,0.011425,87523.0,87512.0,0.13456]
[1742823487227,0.3,87519.0,87512.0,0.13456]
[1742823487573,0.011427,87511.0,87499.0,0.555228]
[1742823487826,0.011427,87511.0,87484.0,0.0788]
[1742823487827,0.3,87504.0,87500.0,0.002]
[1742823488038,0.539996,87501.0,87500.0,0.002]
[1742823488247,0.65425364,87501.0,87500.0,0.002]
[1742823488469,0.65425364,87501.0,87480.0,0.5439696]
[1742823488470,0.540018,87493.0,87480.0,0.5554006]
[1742823488690,0.540018,87493.0,87480.0,0.5439696]
[1742823489318,0.540018,87493.0,87492.0,0.00063293]
[1742823489740,0.3,87493.0,87492.0,0.00063293]
[1742823489942,0.3,87493.0,87492.0,0.14686193]
[1742823490594,0.0023392,87501.0,87494.0,0.011429]
[1742823490793,0.0023392,87501.0,87498.0,0.240004]
[1742823490794,0.0003392,87501.0,87498.0,0.240004]
[1742823490918,0.0003392,87501.0,87499.0,0.228571]
[1742823491110,0.0003392,87501.0,87494.0,0.011429]
[1742823491426,0.0003392,87501.0,87497.0,0.228578]
[1742823491694,0.02403262,87500.0,87495.0,0.011429]
[1742823491865,0.02403262,87500.0,87497.0,0.228578]
[1742823492086,0.0003392,87501.0,87497.0,0.228578]
[1742823492627,0.0003392,87501.0,87499.0,0.228572]
[1742823494232,0.0003392,87501.0,87499.0,0.230572]
[1742823494403,0.0003392,87501.0,87500.0,0.228571]
[1742823494861,0.0003392,87501.0,87500.0,0.35425664]
[1742823495061,0.0003392,87501.0,87500.0,0.5200787]
[1742823496638,0.0003392,87501.0,87500.0,0.5220787]
[1742823497086,0.0003392,87501.0,87500.0,0.5230787]
[1742823497437,0.0003392,87501.0,87500.0,0.5220787]
[1742823497905,2e-07,87501.0,87500.0,0.55361955]
[1742823498544,0.01137893,87549.0,87539.0,0.011423]
[1742823498746,0.2286088,87551.0,87541.0,0.011423]
[1742823498961,0.011422,87548.0,87536.0,0.011423]
[1742823499176,0.228452,87546.0,87538.0,0.22847]
[1742823499371,0.3,87546.0,87539.0,0.228468]
[1742823499733,0.3,87546.0,87537.0,0.011423]
[1742823499734,0.011422,87543.0,87517.0,0.0792]
[1742823499933,0.011423,87540.0,87530.0,0.011424]
[1742823500151,0.52848,87535.0,87524.0,0.011425]
[1742823500756,0.3,87535.0,87534.0,0.202316]
[1742823500995,0.3,87535.0,87534.0,0.145904]
[1742823501465,0.3,87535.0,87534.0,0.1462438]
[1742823502177,0.301,87535.0,87534.0,0.1462438]
[1742823502421,0.001,87535.0,87534.0,0.1462438]
[1742823502688,0.001,87535.0,87534.0,0.37475908]
[1742823502944,0.001,87535.0,87534.0,0.42195908]
[1742823503446,9.406e-05,87546.0,87545.0,0.239875]
[1742823503705,9.406e-05,87546.0,87545.0,0.40325034]
[1742823505274,9.406e-05,87546.0,87545.0,0.49455034]
[1742823505474,0.01009406,87546.0,87545.0,0.49455034]
[1742823506130,6e-08,87546.0,87545.0,0.55889119]
[1742823506345,0.0001698,87551.0,87550.0,0.43356285]
[1742823506346,6e-08,87551.0,87550.0,0.43356285]
[1742823506528,2.6e-07,87560.0,87559.0,0.10856085]
[1742823506756,2.6e-07,87560.0,87559.0,0.76878183]
[1742823506988,2.6e-07,87560.0,87559.0,0.79149849]
[1742823508276,2.6e-07,87560.0,87559.0,0.80349849]
[1742823508471,2.6e-07,87560.0,87559.0,0.93789849]
[1742823508678,2.6e-07,87560.0,87559.0,1.02872055]
[1742823509197,2.6e-07,87560.0,87559.0,1.05106141]
[1742823511635,2.6e-07,87560.0,87559.0,0.90212056]
[1742823511841,2.6e-07,87560.0,87559.0,0.8497797]
[1742823512036,2.6e-07,87560.0,87559.0,0.9840197]
[1742823513450,2.6e-07,87560.0,87559.0,0.66993764]
[1742823513672,2.6e-07,87560.0,87559.0,0.68988]
[1742823514542,0.30000026,87560.0,87559.0,0.6842188]
[1742823514760,0.30000026,87560.0,87559.0,0.5500188]
[1742823514955,0.30000026,87560.0,87559.0,0.5550188]
[1742823515189,0.30000026,87560.0,87559.0,0.5500188]
[1742823515434,0.30000026,87560.0,87559.0,0.5440188]
[1742823515751,0.30000026,87560.0,87559.0,0.0033388]
[1742823515980,0.31142026,87560.0,87559.0,0.0003388]
[1742823516199,0.30000026,87560.0,87559.0,0.0023388]
[1742823516419,2.6e-07,87560.0,87559.0,0.0023388]
[1742823516648,0.01000026,87560.0,87559.0,0.0023388]
[1742823516868,0.01000026,87560.0,87559.0,0.0073388]
[1742823517361,0.01000026,87560.0,87559.0,0.0023388]
[1742823517593,0.01000026,87560.0,87559.0,0.0033388]
[1742823520098,0.31000026,87560.0,87559.0,0.0033388]
[1742823521620,0.01000026,87560.0,87559.0,0.1371788]
[1742823521822,0.01000026,87560.0,87559.0,0.19886568]
[1742823522550,0.01000026,87560.0,87559.0,0.1351788]
[1742823523026,0.01000026,87560.0,87559.0,0.3770158]
[1742823523263,0.01000026,87560.0,87559.0,0.49427344]
[1742823524396,0.01000026,87560.0,87559.0,1.03483344]
[1742823525108,0.01000026,87560.0,87559.0,1.03883344]
[1742823525311,0.01000026,87560.0,87559.0,1.14909108]
[1742823525719,0.01000026,87560.0,87559.0,1.15309108]
[1742823525984,0.01000026,87560.0,87559.0,1.01225108]
[1742823526149,0.01000026,87560.0,87559.0,1.15173108]
[1742823526357,0.01000026,87560.0,87559.0,1.15573108]
[1742823526774,0.0003392,87563.0,87562.0,0.317429]
[1742823527001,0.0003392,87563.0,87562.0,0.45122749]
[1742823527559,0.0003392,87563.0,87562.0,0.58490749]
[1742823528533,0.0003392,87563.0,87562.0,0.59090749]
[1742823528736,0.0003392,87563.0,87562.0,0.58490749]
[1742823529109,0.0003392,87563.0,87562.0,0.67970428]
[1742823529222,0.0003392,87563.0,87562.0,0.68570428]
[1742823530472,0.0003392,87563.0,87562.0,0.71437682]
[1742823530673,0.0003392,87563.0,87562.0,0.49984664]
[1742823530872,0.0003392,87563.0,87562.0,0.12625764]
[1742823531115,0.0003392,87563.0,87562.0,0.49980664]
[1742823531523,0.0003392,87563.0,87562.0,0.49380664]
[1742823531700,0.0003392,87563.0,87562.0,0.61406428]
[1742823531895,0.0003392,87572.0,87568.0,0.011419]
[1742823532120,0.0003392,87572.0,87568.0,0.35406964]
[1742823532849,0.0003392,87572.0,87568.0,0.11425764]
[1742823533047,0.0003392,87572.0,87568.0,0.34265064]
[1742823533211,0.0003392,87572.0,87568.0,0.46343833]
[1742823533832,0.0003392,87572.0,87568.0,0.46943833]
[1742823534436,4e-07,87569.0,87568.0,0.46943833]
[1742823534883,4e-07,87569.0,87568.0,0.47543833]
[1742823535410,4e-07,87569.0,87568.0,0.57067918]
[1742823536370,4e-07,87569.0,87568.0,0.56467918]
[1742823536578,6e-07,87572.0,87571.0,0.244805]
[1742823536924,0.002339,87589.0,87588.0,0.244758]
[1742823537248,0.00275072,87589.0,87588.0,1.05079649]
[1742823537434,0.00275072,87589.0,87588.0,1.08615328]
[1742823538229,0.00275072,87589.0,87588.0,1.09215328]
[1742823538451,0.00275072,87589.0,87588.0,1.20641092]
[1742823538874,0.00275072,87589.0,87588.0,1.21241092]
[1742823539744,0.00275072,87589.0,87588.0,1.23141092]
[1742823539993,0.00275072,87589.0,87588.0,1.26042349]
[1742823540235,0.00275072,87589.0,87588.0,1.56042349]
[1742823540456,7.2e-07,87589.0,87588.0,1.55442349]
[1742823540791,7.2e-07,87589.0,87588.0,1.56042349]
[1742823541020,7.2e-07,87589.0,87588.0,1.55442349]
[1742823541193,7.2e-07,87589.0,87588.0,1.54942349]
[1742823541424,7.2e-07,87589.0,87588.0,1.5250667]
[1742823542933,7.2e-07,87589.0,87588.0,1.56036335]
[1742823543141,7.2e-07,87589.0,87588.0,1.5250667]
[1742823544363,7.2e-07,87589.0,87588.0,1.6563667]
[1742823544905,0.0001695,87623.0,87604.0,0.66645585]
[1742823545087,0.0001695,87623.0,87605.0,0.041414]
[1742823545088,8.3e-07,87606.0,87605.0,0.041414]
[1742823545310,8.3e-07,87606.0,87605.0,0.59004901]
[1742823545443,8.3e-07,87606.0,87605.0,0.58776729]
[1742823545644,1e-06,87619.0,87618.0,0.58421685]
[1742823545987,1e-06,87619.0,87618.0,1.50253449]
[1742823546233,5e-07,87623.0,87622.0,0.569665]
[1742823546442,5e-07,87623.0,87622.0,0.69846349]
[1742823547073,5e-07,87623.0,87622.0,0.69346349]
[1742823547247,5e-07,87623.0,87622.0,0.66846349]
[1742823547454,5e-07,87623.0,87622.0,0.80834349]
[1742823547673,5e-07,87623.0,87622.0,0.9708118]
[1742823547823,5e-07,87623.0,87622.0,0.9758118]
[1742823548626,5e-07,87623.0,87622.0,0.9698118]
[1742823549493,5e-07,87623.0,87622.0,1.0546118]
[1742823550617,5e-07,87623.0,87622.0,1.0606118]
[1742823550987,5e-07,87623.0,87622.0,1.0546118]
[1742823551232,5e-07,87623.0,87622.0,1.0486118]
[1742823551447,5e-07,87623.0,87622.0,1.0546118]
[1742823551985,5e-07,87623.0,87622.0,1.0606118]
[1742823552184,5e-07,87623.0,87622.0,1.04627095]
[1742823552625,5e-07,87623.0,87622.0,1.0608118]
[1742823552946,5e-07,87623.0,87622.0,1.04635095]
[1742823553131,5e-07,87623.0,87622.0,1.0608918]
[1742823555264,5e-07,87623.0,87622.0,0.6267318]
[1742823555448,5e-07,87623.0,87622.0,0.12625764]
[1742823555670,5e-07,87623.0,87622.0,0.26045764]
[1742823556235,5e-07,87623.0,87622.0,0.12025764]
[1742823556410,0.2396625,87623.0,87622.0,0.14016]
[1742823557419,0.2396625,87623.0,87622.0,0.13416]
[1742823557636,0.2396625,87623.0,87622.0,0.14016]
[1742823557835,0.2396625,87623.0,87622.0,0.14616]
[1742823558059,0.2396625,87623.0,87622.0,0.012]
[1742823558260,0.2396625,87623.0,87618.0,0.54324]
[1742823558261,0.0114125,87623.0,87618.0,0.54324]
[1742823558466,5e-07,87623.0,87622.0,0.003]
[1742823558669,5e-07,87623.0,87622.0,0.12866964]
[1742823558837,5e-07,87623.0,87622.0,0.13095171]
[1742823559068,5e-07,87623.0,87622.0,0.12766964]
[1742823559278,5e-07,87623.0,87622.0,0.11425764]
[1742823559477,5e-07,87623.0,87622.0,0.1925607]
[1742823559727,5e-07,87623.0,87622.0,0.19484284]
[1742823559874,5e-07,87623.0,87622.0,0.1811487]
[1742823560080,5e-07,87623.0,87622.0,0.11425764]
[1742823560339,5e-07,87623.0,87622.0,0.34251064]
[1742823560536,5e-07,87623.0,87622.0,0.35392264]
[1742823561313,5e-07,87623.0,87622.0,0.35692264]
[1742823561515,5e-07,87623.0,87622.0,0.36092264]
[1742823561719,5e-07,87623.0,87622.0,0.47518028]
[1742823562438,0.0100005,87623.0,87622.0,0.47518028]
[1742823562944,0.0100005,87623.0,87622.0,0.48018028]
[1742823563145,5e-07,87623.0,87622.0,0.82005973]
[1742823564128,5e-07,87623.0,87622.0,0.81305973]
[1742823564324,5e-07,87623.0,87622.0,0.81605973]
[1742823564492,5e-07,87623.0,87622.0,0.83170422]
[1742823564805,5e-07,87623.0,87622.0,0.83327187]
[1742823565007,5e-07,87623.0,87622.0,0.97367187]
[1742823565253,0.0001694,87648.0,87647.0,0.239597]
[1742823565435,0.00029277,87648.0,87647.0,1.10575544]
[1742823566922,0.00029277,87648.0,87647.0,0.97127544]
[1742823567123,0.00029277,87648.0,87647.0,1.10563544]
[1742823567343,0.00029277,87648.0,87647.0,1.11063544]
[1742823567569,0.00029277,87648.0,87647.0,1.13017629]
[1742823568355,0.00029277,87648.0,87647.0,1.13617629]
[1742823568696,0.00029277,87648.0,87647.0,1.16117629]
[1742823569195,0.00029277,87648.0,87647.0,1.15017629]
[1742823569425,7.7e-07,87648.0,87647.0,1.45617629]
[1742823569738,0.0001694,87651.0,87650.0,0.041409]
[1742823569739,1.7e-07,87651.0,87650.0,0.041409]
[1742823569951,1.7e-07,87651.0,87650.0,0.58674584]
[1742823570175,1.7e-07,87651.0,87650.0,0.61968129]
[1742823571688,1.7e-07,87651.0,87650.0,0.62568129]
[1742823571897,1.7e-07,87651.0,87650.0,0.72972129]
[1742823572022,1.7e-07,87651.0,87650.0,0.72550513]
[1742823572223,1.7e-07,87651.0,87650.0,0.73050513]
[1742823573228,1.7e-07,87651.0,87650.0,0.76573245]
[1742823574529,1.7e-07,87651.0,87650.0,0.76607105]
[1742823576534,1.7e-07,87651.0,87650.0,0.76107105]
[1742823576737,1.7e-07,87651.0,87650.0,0.73587105]
[1742823577076,1.7e-07,87651.0,87650.0,0.70064373]
[1742823577277,1.7e-07,87651.0,87650.0,0.92882373]
[1742823577900,1.7e-07,87651.0,87650.0,0.61928288]
[1742823578307,1.7e-07,87651.0,87650.0,0.63382373]
[1742823578675,1.7e-07,87651.0,87650.0,1.05172373]
[1742823578783,1.7e-07,87651.0,87650.0,0.78408524]
[1742823578986,1.7e-07,87651.0,87650.0,0.54449624]
[1742823579191,1.7e-07,87651.0,87650.0,0.67817624]
[1742823579720,0.08060017,87651.0,87650.0,0.5639186]
[1742823580045,0.08060017,87651.0,87650.0,0.5579186]
[1742823580245,0.08060017,87651.0,87650.0,0.5619186]
[1742823580456,0.30877717,87651.0,87650.0,0.5619186]
[1742823580664,0.66758517,87651.0,87650.0,0.0063386]
[1742823580862,0.66758517,87651.0,87650.0,0.0003386]
[1742823581391,0.66758517,87651.0,87650.0,0.0063386]
[1742823581932,0.66758517,87651.0,87650.0,0.0003386]
[1742823582134,0.66758517,87651.0,87650.0,0.0053386]
[1742823582336,0.66758517,87651.0,87650.0,0.0013386]
[1742823585600,1.17461917,87651.0,87650.0,6e-07]
[1742823585803,0.316643,87630.0,87629.0,0.54292]
[1742823586011,0.316643,87630.0,87629.0,0.54304337]
[1742823586226,0.616643,87630.0,87629.0,0.54304337]
[1742823586511,0.654543,87630.0,87629.0,0.00012337]
[1742823586692,0.944992,87630.0,87629.0,3.7e-07]
[1742823586895,0.944992,87630.0,87623.0,0.00017894]
[1742823586896,0.239659,87624.0,87623.0,0.00017894]
[1742823587101,0.239659,87624.0,87609.0,0.54292]
[1742823587102,0.239698,87610.0,87609.0,0.54292]
[1742823587314,0.539698,87610.0,87609.0,0.54292]
[1742823587512,0.539698,87610.0,87599.0,0.13356]
[1742823587513,0.239725,87600.0,87599.0,0.13356]
[1742823588654,0.539725,87600.0,87599.0,0.13356]
[1742823588866,0.239747,87592.0,87591.0,0.543]
[1742823589076,0.239747,87592.0,87591.0,0.54312343]
[1742823590117,1.198066,87592.0,87591.0,0.00012343]
[1742823590320,1.31107023,87592.0,87591.0,0.00012343]
[1742823590505,1.198066,87592.0,87591.0,4.3e-07]
[1742823590710,0.539747,87592.0,87591.0,0.00400043]
[1742823591452,0.539747,87592.0,87591.0,4.3e-07]
[1742823591914,0.539747,87592.0,87591.0,0.00200043]
[1742823592119,0.539755,87589.0,87588.0,2.3e-07]
[1742823592273,0.65401264,87589.0,87588.0,2.3e-07]
[1742823592476,0.539755,87589.0,87588.0,2.3e-07]
[1742823592918,0.228339,87589.0,87588.0,2.3e-07]
[1742823593320,0.228333,87591.0,87588.0,2.3e-07]
[1742823593525,0.228338,87590.0,87588.0,2.3e-07]
[1742823593726,0.002,87589.0,87588.0,2.3e-07]
[1742823595436,0.003,87589.0,87588.0,2.3e-07]
[1742823595658,0.228338,87590.0,87588.0,2.3e-07]
[1742823595851,0.228338,87590.0,87589.0,0.1334]
[1742823596921,0.386716,87589.0,87588.0,0.00100023]
[1742823597168,0.687554,87589.0,87588.0,2.3e-07]
[1742823597427,0.386716,87589.0,87588.0,2.3e-07]
[1742823597920,0.51551449,87589.0,87588.0,2.3e-07]
[1742823599705,0.51751449,87589.0,87588.0,2.3e-07]
[1742823600213,0.52051449,87589.0,87588.0,2.3e-07]
[1742823600483,0.305,87589.0,87588.0,2.3e-07]
[1742823600676,0.316416,87589.0,87588.0,2.3e-07]
[1742823601415,0.544755,87589.0,87588.0,2.3e-07]
[1742823602271,0.542755,87589.0,87588.0,2.3e-07]
[1742823602743,0.67355349,87589.0,87588.0,2.3e-07]
[1742823603152,0.68024056,87589.0,87588.0,2.3e-07]
[1742823603356,0.544755,87589.0,87588.0,2.3e-07]
[1742823603771,0.005,87589.0,87588.0,0.34259887]
[1742823603999,0.002,87589.0,87588.0,0.90515587]
[1742823604206,0.005,87589.0,87588.0,1.01941351]
[1742823604619,0.002,87589.0,87588.0,1.01941351]
[1742823604770,0.00012316,87592.0,87591.0,0.239749]
[1742823604982,0.00012316,87592.0,87591.0,0.22851528]
[1742823605189,0.00012316,87592.0,87591.0,0.46626428]
[1742823606095,0.00012316,87592.0,87591.0,0.76990664]
[1742823606718,0.00012316,87592.0,87591.0,0.77290664]
[1742823607100,0.00012316,87592.0,87591.0,0.53315764]
[1742823607309,0.00012316,87592.0,87591.0,0.4209]
[1742823607513,0.00012316,87592.0,87591.0,0.4229]
[1742823607717,0.00012316,87592.0,87591.0,0.83250466]
[1742823607894,0.00012316,87592.0,87591.0,0.59275566]
[1742823608097,0.00012316,87592.0,87591.0,0.82108866]
[1742823608317,0.00012316,87592.0,87591.0,0.83250466]
[1742823609134,0.00012316,87592.0,87591.0,0.91170466]
[1742823609686,0.00012316,87592.0,87591.0,0.53715764]
[1742823609891,0.00012316,87592.0,87591.0,0.4229]
[1742823609892,0.01012316,87592.0,87591.0,0.4229]
[1742823610099,0.23862396,87592.0,87591.0,0.4229]
[1742823610301,0.25003996,87592.0,87591.0,0.4229]
[1742823610510,0.01029296,87592.0,87591.0,0.4229]
[1742823610719,0.23862396,87592.0,87591.0,0.4229]
[1742823610926,0.01029296,87592.0,87591.0,0.005]
[1742823611132,0.23862396,87592.0,87591.0,0.005]
[1742823611339,0.01029296,87592.0,87591.0,0.005]
[1742823611665,0.01029296,87592.0,87591.0,0.01886802]
[1742823611879,0.01029296,87592.0,87591.0,0.005]
[1742823614526,0.01029296,87592.0,87591.0,0.35900664]
[1742823616808,0.01029296,87592.0,87591.0,0.77690664]
[1742823617233,0.01029296,87592.0,87591.0,0.55622]
[1742823617234,0.25003996,87592.0,87591.0,0.55622]
[1742823617404,0.01029296,87592.0,87591.0,0.55622]
[1742823617816,0.01029296,87592.0,87591.0,0.005]
[1742823617817,0.25003996,87592.0,87591.0,0.005]
[1742823618015,0.32527526,87592.0,87591.0,0.005]
[1742823618177,0.25003996,87592.0,87591.0,0.005]
[1742823618787,0.25003996,87592.0,87591.0,0.003]
[1742823619016,0.25003996,87592.0,87588.0,2.3e-07]
[1742823619017,0.539755,87589.0,87588.0,2.3e-07]
[1742823619218,0.65401264,87589.0,87588.0,2.3e-07]
[1742823619419,0.228393,87569.0,87567.0,0.13332]
[1742823619599,0.228385,87572.0,87567.0,0.13332]
[1742823620363,0.228378,87574.0,87567.0,0.13332]
[1742823620590,0.3,87576.0,87568.0,0.11425764]
[1742823620721,0.011418,87575.0,87567.0,0.13632]
[1742823620929,0.239802,87572.0,87567.0,0.13632]
[1742823621128,0.228386,87571.0,87567.0,0.003]
[1742823621328,0.011418,87575.0,87568.0,0.1336]
[1742823621578,0.228375,87575.0,87569.0,0.0136939]
[1742823621813,0.239793,87575.0,87568.0,0.1336]
[1742823622018,0.228383,87572.0,87568.0,0.1336]
[1742823622358,0.239798,87574.0,87568.0,0.1336]
[1742823622559,0.3,87582.0,87568.0,0.1336]
[1742823622695,0.228375,87575.0,87568.0,0.1336]
[1742823623033,0.228378,87574.0,87569.0,0.001]
[1742823623455,0.3,87575.0,87568.0,0.1346]
[1742823623617,0.528375,87575.0,87568.0,0.1346]
[1742823623814,0.228378,87574.0,87568.0,0.1346]
[1742823623993,0.528375,87575.0,87568.0,0.001]
[1742823624182,0.228378,87574.0,87569.0,0.13336]
[1742823624737,0.3,87577.0,87569.0,0.13336]
[1742823625112,0.228368,87578.0,87569.0,0.13336]
[1742823625113,0.011418,87578.0,87569.0,0.13336]
[1742823625324,0.228376,87575.0,87569.0,0.13336]
[1742823625489,0.011417,87583.0,87570.0,0.11425764]
[1742823625703,0.528361,87581.0,87570.0,0.11425764]
[1742823625989,0.539779,87581.0,87570.0,0.11425764]
[1742823626189,0.3,87581.0,87569.0,0.13336]
[1742823626387,0.3,87579.0,87571.0,0.11425764]
[1742823627967,0.528366,87579.0,87571.0,0.11425764]
[1742823628194,0.001,87581.0,87572.0,0.090419]
[1742823628390,0.3,87583.0,87575.0,0.011418]
[1742823628584,0.31029296,87592.0,87577.0,0.011418]
[1742823628812,0.53862396,87592.0,87578.0,0.34490698]
[1742823629011,0.53862396,87592.0,87578.0,0.34262364]
[1742823629225,0.31029296,87592.0,87582.0,0.228356]
[1742823629417,0.31029296,87592.0,87583.0,0.24749764]
[1742823629748,0.01029296,87592.0,87586.0,0.228346]
[1742823630077,0.01029296,87592.0,87586.0,0.11425764]
[1742823630484,0.01229296,87592.0,87589.0,0.239755]
[1742823630658,0.01229296,87592.0,87590.0,0.11425764]
[1742823630866,0.01229296,87592.0,87591.0,0.13316]
[1742823631080,0.01029296,87592.0,87591.0,0.24741764]
[1742823631230,0.01029296,87592.0,87591.0,0.47575064]
[1742823631430,0.01029296,87592.0,87591.0,0.36167528]
[1742823631643,0.01129296,87592.0,87591.0,0.59000828]
[1742823632069,0.01029296,87592.0,87591.0,0.36167528]
[1742823632268,0.01029296,87592.0,87591.0,0.36267528]
[1742823632456,0.01029296,87592.0,87591.0,0.24841764]
[1742823632651,0.01029296,87592.0,87591.0,0.47675064]
[1742823633117,0.01229296,87592.0,87591.0,0.48816664]
[1742823633268,0.01029296,87592.0,87591.0,0.48816664]
[1742823633698,0.01029296,87592.0,87591.0,0.48916664]
[1742823633897,0.01029296,87592.0,87591.0,0.60376388]
[1742823634121,0.01029296,87592.0,87591.0,0.24975724]
[1742823634916,0.01029296,87592.0,87591.0,0.47809024]
[1742823635593,0.01029296,87592.0,87591.0,0.48950624]
[1742823636835,0.01029296,87592.0,87591.0,0.35634624]
[1742823637039,0.01029296,87592.0,87591.0,0.98446624]
[1742823637357,0.01029296,87592.0,87591.0,1.14452388]
[1742823637558,0.01029296,87592.0,87591.0,1.16406473]
[1742823638058,0.01029296,87592.0,87591.0,1.16206473]
[1742823638197,0.01029296,87592.0,87591.0,1.16306473]
[1742823638411,0.01029296,87592.0,87591.0,1.16406473]
[1742823638629,0.01029296,87592.0,87591.0,1.16206473]
[1742823639031,0.01029296,87592.0,87591.0,1.16806473]
[1742823639434,0.0001697,87630.0,87629.0,0.228234]
[1742823639652,0.00021082,87630.0,87629.0,0.4558336]
[1742823639854,0.00021082,87630.0,87629.0,0.2275996]
[1742823642334,0.239659,87624.0,87623.0,0.96117904]
[1742823642536,0.239659,87624.0,87605.0,0.0825]
[1742823642537,0.3,87624.0,87607.0,0.13288]
[1742823642737,0.228308,87601.0,87599.0,0.13288]
[1742823642944,0.22831,87600.0,87599.0,0.13288]
[1742823643150,0.228307,87601.0,87599.0,0.13288]
[1742823643593,0.228309,87601.0,87599.0,0.13288]
[1742823643804,0.239724,87601.0,87599.0,0.13288]
[1742823644020,0.311415,87601.0,87599.0,0.13288]
[1742823644221,4.11e-05,87601.0,87599.0,0.13288]
[1742823644631,4.11e-05,87601.0,87592.0,0.41789904]
[1742823644835,0.22831,87600.0,87595.0,0.1328]
[1742823645008,0.011415,87600.0,87599.0,0.004]
[1742823645215,0.3,87600.0,87599.0,0.004]
[1742823645578,0.3,87600.0,87599.0,0.002]
[1742823645779,0.3,87600.0,87595.0,0.1328]
[1742823646608,0.239736,87596.0,87595.0,0.1328]
[1742823646811,0.239744,87593.0,87591.0,0.0003396]
[1742823647019,0.228331,87592.0,87591.0,0.0003396]
[1742823647226,0.239739,87595.0,87591.0,0.0003396]
[1742823647401,0.22833,87593.0,87591.0,0.0003396]
[1742823647905,0.228331,87592.0,87591.0,0.0003396]
[1742823648131,0.228329,87593.0,87591.0,0.0003396]
[1742823648330,0.2284768,87602.0,87591.0,0.0003396]
[1742823648553,0.3,87600.0,87598.0,0.228315]
[1742823648686,0.3,87600.0,87596.0,0.011416]
[1742823648687,0.3,87600.0,87596.0,0.13272]
[1742823648891,0.3,87597.0,87596.0,0.13272]
[1742823649146,0.3,87598.0,87596.0,0.13272]
[1742823649691,0.3000411,87601.0,87596.0,0.14622596]
[1742823649915,0.5283491,87601.0,87596.0,0.14622596]
[1742823650147,0.3,87599.0,87596.0,0.13272]
[1742823650389,4.11e-05,87601.0,87596.0,0.13272]
[1742823651260,0.3,87599.0,87596.0,0.13272]
[1742823651630,0.3,87599.0,87598.0,0.001]
[1742823651957,0.3,87599.0,87598.0,0.11525764]
[1742823652146,0.3,87599.0,87598.0,0.11425764]
[1742823652350,4.11e-05,87601.0,87598.0,0.11425764]
[1742823652565,4.11e-05,87601.0,87599.0,0.11425764]
[1742823652917,4.11e-05,87601.0,87596.0,0.13272]
[1742823653119,4.11e-05,87601.0,87598.0,0.001]
[1742823653294,4.11e-05,87601.0,87599.0,0.11425764]
[1742823655938,4.11e-05,87601.0,87599.0,0.11525764]
[1742823657880,4.11e-05,87601.0,87600.0,0.73840694]
[1742823658093,4.11e-05,87601.0,87600.0,0.91162253]
[1742823658331,0.0001697,87630.0,87629.0,0.228234]
[1742823658533,0.00021081,87630.0,87629.0,1.01825164]
[1742823658751,0.00021081,87630.0,87629.0,1.02966264]
[1742823658946,0.00021081,87630.0,87629.0,1.12748833]
[1742823659667,0.00021081,87630.0,87629.0,0.79001764]
[1742823660043,0.00021081,87630.0,87629.0,0.79201764]
[1742823660242,0.00021081,87630.0,87629.0,0.67776]
[1742823660455,0.53985381,87630.0,87629.0,0.002]
[1742823660684,0.53985381,87630.0,87629.0,0.004]
[1742823661126,0.65411145,87630.0,87629.0,0.004]
[1742823661388,0.65411145,87630.0,87629.0,0.002]
[1742823661578,0.539692,87612.0,87611.0,0.5432]
[1742823664700,0.539692,87612.0,87602.0,0.41768814]
[1742823664701,0.239717,87603.0,87602.0,0.41768814]
[1742823664897,0.011415,87603.0,87596.0,0.13248]
[1742823665100,0.228305,87602.0,87596.0,0.13248]